fUST/lending_fUST_20250222
["ID","MTS","AMOUNT","RATE_DAILY","PERIOD"]
[354061873,1740216646694,-462.0,0.00016616,2]
[354061875,1740216646703,-462.0,0.00016616,2]
[354061877,1740216646712,-462.0,0.00016616,2]
[354061879,1740216646722,-462.0,0.00016616,2]
[354061881,1740216646732,-462.0,0.00016616,2]
[354061883,1740216646741,-462.0,0.00016616,2]
[354061885,1740216646751,-462.0,0.00016616,2]
[354061887,1740216646761,-462.0,0.00016616,2]
[354061889,1740216646770,-656.0,0.00016617,2]
[354061891,1740216646779,-656.0,0.00016617,2]
[354061893,1740216646788,-656.0,0.00016617,2]
[354061895,1740216646797,-656.0,0.00016617,2]
[354061897,1740216646807,-656.0,0.00016617,2]
[354061899,1740216646816,-656.0,0.00016617,2]
[354061901,1740216646825,-656.0,0.00016617,2]
[354061903,1740216646834,-656.0,0.00016617,2]
[354061905,1740216646843,-656.0,0.00016617,2]
[354061907,1740216646852,-656.0,0.00016617,2]
[354061909,1740216646862,-656.0,0.00016617,2]
[354061911,1740216646872,-656.0,0.00016617,2]
[354061913,1740216646881,-656.0,0.00016617,2]
[354061915,1740216646891,-656.0,0.00016617,2]
[354061917,1740216646900,-236.682273,0.00016634,2]
[354061919,1740216646909,-236.682273,0.00016634,2]
[354061921,1740216646917,-161.735493,0.00016634,2]
[354061923,1740216646926,-254.27023,0.00016634,2]
[354061925,1740216646935,-161.735493,0.00016634,2]
[354061927,1740216646944,-151.0,0.00016634,2]
[354061929,1740216646953,-254.27023,0.00016634,2]
[354061931,1740216646963,-948.041667,0.00016634,2]
[354061933,1740216646972,-948.041667,0.00016634,2]
[354061935,1740216646980,-465.00577583,0.00016682,2]
[354061937,1740216646990,-150.24,0.00016771,2]
[354061939,1740216646999,-150.24,0.00016771,2]
[354061940,1740216647008,-150.24,0.00016771,2]
[354061943,1740216647017,-500.0,0.00016771,2]
[354061944,1740216647026,-150.24,0.00016771,2]
[354061946,1740216647035,-150.24,0.00016771,2]
[354061948,1740216647044,-150.46722832,0.00016771,2]
[354061950,1740216647053,-503.0,0.00016771,2]
[354061952,1740216647062,-500.0,0.00016771,2]
[354061954,1740216647072,-889.39145222,0.000168,7]
[354061956,1740216647081,-209.84879352,0.00016818,2]
[354061958,1740216647090,-2950.0,0.0001687,2]
[354061961,1740216647100,-465.00268727,0.00016891,2]
[354061963,1740216647109,-321.01628146,0.0001699,2]
[354061965,1740216647118,-151.0,0.00017,2]
[354061967,1740216647128,-500.0,0.00017,7]
[354061968,1740216647139,-500.0,0.00017,7]
[354061971,1740216647147,-500.0,0.00017,7]
[354061972,1740216647157,-500.0,0.00017,7]
[354061975,1740216647166,-500.0,0.00017,7]
[354061976,1740216647175,-500.0,0.00017,7]
[354061978,1740216647184,-288.67,0.00017,7]
[354061980,1740216647193,-500.0,0.00017,7]
[354061983,1740216647203,-58274.02259083,0.00017,2]
[354061985,1740216647212,-1000.21247836,0.00017,2]
[354061987,1740216647221,-151.0,0.00017,2]
[354061989,1740216647230,-171.565081,0.00017,2]
[354061991,1740216647240,-171.565081,0.00017,2]
[354061992,1740216647251,-355.293833,0.00017041,2]
[354061994,1740216647261,-355.293833,0.00017041,2]
[354061996,1740216647271,-355.293833,0.00017041,2]
[354061998,1740216647280,-355.293833,0.00017041,2]
[354062000,1740216647290,-355.293833,0.00017041,2]
[354062003,1740216647304,-150.24,0.00017045,2]
[354062005,1740216647313,-150.24,0.00017045,2]
[354062007,1740216647323,-150.24,0.00017045,2]
[354062008,1740216647332,-640.65889872,0.00017045,2]
[354062010,1740216647341,-150.24,0.00017045,2]
[354062012,1740216647351,-503.0,0.00017045,2]
[354062014,1740216647359,-500.0,0.00017045,2]
[354062016,1740216647369,-150.0,0.00017086,4]
[354062018,1740216647378,-29821.69848589,0.0001711,2]
[354062020,1740216647387,-151.0,0.0001711,2]
[354062022,1740216647397,-430.739835,0.00017178,2]
[354062024,1740216647406,-153.0,0.00017178,2]
[354062026,1740216647415,-154.796407,0.00017178,2]
[354062028,1740216647424,-557.2941539,0.00017178,2]
[354062030,1740216647435,-153.0,0.00017178,2]
[354062032,1740216647445,-154.796407,0.00017178,2]
[354062034,1740216647454,-154.796407,0.00017178,2]
[354062036,1740216647463,-153.0,0.00017178,2]
[354062038,1740216647473,-154.796407,0.00017178,2]
[354062040,1740216647481,-153.0,0.00017178,2]
[354062042,1740216647491,-154.796407,0.00017178,2]
[354062044,1740216647500,-154.796407,0.00017178,2]
[354062046,1740216647509,-154.796407,0.00017178,2]
[354062048,1740216647518,-154.796407,0.00017178,2]
[354062050,1740216647527,-154.796407,0.00017178,2]
[354062052,1740216647537,-154.3508732,0.00017178,2]
[354062054,1740216647546,-151.18936095,0.00017199,4]
[354062056,1740216647555,-199.52,0.00017319,2]
[354062058,1740216647565,-150.24,0.00017319,2]
[354062060,1740216647574,-199.52,0.00017319,2]
[354062062,1740216647584,-200.68369644,0.00017319,2]
[354062064,1740216647595,-503.0,0.00017319,2]
[354062066,1740216647606,-500.0,0.00017319,2]
[354062068,1740216647616,-7177.10861212,0.000174,2]
[354062070,1740216647626,-151.294209,0.00017445,2]
[354062072,1740216647635,-151.0,0.00017445,2]
[354062074,1740216647645,-306.4618619,0.00017452,2]
[354062076,1740216647654,-153.0,0.00017498,2]
[354062078,1740216647665,-154.796407,0.00017498,2]
[354062079,1740216647673,-1120.3563857,0.00017498,2]
[354062081,1740216647683,-151.0,0.000175,2]
[354062084,1740216647695,-13278.19900895,0.00017521,2]
[354062086,1740216647705,-598.02,0.00017534,4]
[354062088,1740216647714,-160.50814073,0.0001759,2]
[354062090,1740216647723,-150.24,0.00017593,2]
[354062092,1740216647733,-503.0,0.00017593,2]
[354062094,1740216647742,-500.0,0.00017593,2]
[354062096,1740216647751,-470.287999,0.00017593,2]
[354062098,1740216647761,-470.287999,0.00017593,2]
[354062100,1740216647770,-151.0,0.00017593,2]
[354062101,1740216647779,-193.404654,0.00017593,2]
[354062102,1740216647788,-193.404654,0.00017593,2]
[354062103,1740216647797,-429.519595,0.00017593,2]
[354062104,1740216647806,-1727.19061,0.00017593,2]
[354062106,1740216647815,-1727.19061,0.00017593,2]
[354062108,1740216647825,-151.0,0.00017593,2]
[354062110,1740216647835,-429.519595,0.00017593,2]
[354062112,1740216647844,-714.65534195,0.00017599,2]
[354062114,1740216647853,-500.0,0.000176,2]
[354062116,1740216647862,-218.15520711,0.000176,2]
[354062118,1740216647871,-349.0,0.000176,2]
[354062120,1740216647880,-349.0,0.000176,2]
[354062122,1740216647890,-315.0,0.000176,2]
[354062124,1740216647900,-349.0,0.000176,2]
[354062126,1740216647909,-315.0,0.000176,2]
[354062128,1740216647919,-315.0,0.000176,2]
[354062129,1740216647928,-349.0,0.000176,2]
[354062131,1740216647937,-315.0,0.000176,2]
[354062133,1740216647946,-349.0,0.000176,2]
[354062135,1740216647955,-315.0,0.000176,2]
[354062137,1740216647964,-349.0,0.000176,2]
[354062139,1740216647974,-315.0,0.000176,2]
[354062141,1740216647983,-349.0,0.000176,2]
[354062143,1740216647992,-315.0,0.000176,2]
[354062145,1740216648002,-273.19398079,0.000176,2]
[354062147,1740216648011,-315.0,0.000176,2]
[354062149,1740216648020,-315.0,0.000176,2]
[354062151,1740216648029,-315.0,0.000176,2]
[354062153,1740216648039,-315.0,0.000176,2]
[354062155,1740216648048,-315.0,0.000176,2]
[354062157,1740216648058,-315.0,0.000176,2]
[354062159,1740216648069,-315.0,0.000176,2]
[354062161,1740216648082,-315.0,0.000176,2]
[354062163,1740216648092,-315.0,0.000176,2]
[354062165,1740216648102,-315.0,0.000176,2]
[354062167,1740216648111,-315.0,0.000176,2]
[354062169,1740216648120,-315.0,0.000176,2]
[354062172,1740216648130,-315.0,0.000176,2]
[354062173,1740216648139,-315.0,0.000176,2]
[354062175,1740216648148,-315.0,0.000176,2]
[354062177,1740216648157,-315.0,0.000176,2]
[354062179,1740216648166,-315.0,0.000176,2]
[354062181,1740216648176,-315.0,0.000176,2]
[354062183,1740216648185,-315.0,0.000176,2]
[354062186,1740216648195,-315.0,0.000176,2]
[354062187,1740216648205,-315.0,0.000176,2]
[354062190,1740216648215,-315.0,0.000176,2]
[354062192,1740216648224,-315.0,0.000176,2]
[354062194,1740216648234,-315.0,0.000176,2]
[354062195,1740216648243,-411.09860035,0.000176,2]
[354062198,1740216648254,-349.0,0.000176,2]
[354062200,1740216648264,-349.0,0.000176,2]
[354062202,1740216648274,-349.0,0.000176,2]
[354062204,1740216648283,-349.0,0.000176,2]
[354062205,1740216648293,-204.88884452,0.000176,2]
[354062207,1740216648305,-201.69667616,0.000176,2]
[354062209,1740216648318,-349.0,0.000176,2]
[354062211,1740216648332,-349.0,0.000176,2]
[354062213,1740216648345,-349.0,0.000176,2]
[354062215,1740216648355,-349.0,0.000176,2]
[354062218,1740216648365,-349.0,0.000176,2]
[354062219,1740216648374,-349.0,0.000176,2]
[354062221,1740216648383,-349.0,0.000176,2]
[354062223,1740216648393,-349.0,0.000176,2]
[354062225,1740216648402,-349.0,0.000176,2]
[354062227,1740216648411,-349.0,0.000176,2]
[354062229,1740216648421,-349.0,0.000176,2]
[354062231,1740216648430,-349.0,0.000176,2]
[354062233,1740216648440,-349.0,0.000176,2]
[354062235,1740216648449,-349.0,0.000176,2]
[354062237,1740216648458,-349.0,0.000176,2]
[354062239,1740216648468,-349.0,0.000176,2]
[354062241,1740216648478,-349.0,0.000176,2]
[354062243,1740216648487,-349.0,0.000176,2]
[354062245,1740216648496,-349.0,0.000176,2]
[354062247,1740216648506,-349.0,0.000176,2]
[354062249,1740216648515,-349.0,0.000176,2]
[354062251,1740216648524,-349.0,0.000176,2]
[354062253,1740216648534,-315.0,0.000176,2]
[354062255,1740216648543,-315.0,0.000176,2]
[354062257,1740216648552,-315.0,0.000176,2]
[354062259,1740216648561,-315.0,0.000176,2]
[354062268,1740216648570,-151.0,0.000176,2]
[354062271,1740216648659,-151.0,0.000176,2]
[354062273,1740216648669,-151.0,0.000176,2]
[354062275,1740216648679,-161.395094,0.00017603,10]
[354062277,1740216648688,-710.43500729,0.00017643,2]
[354062279,1740216648698,-151.0,0.00017679,2]
[354062281,1740216648707,-151.0,0.00017679,2]
[354062283,1740216648717,-151.0,0.00017679,2]
[354062285,1740216648726,-253.375716,0.00017679,2]
[354062287,1740216648735,-253.375716,0.00017679,2]
[354062289,1740216648744,-366.093694,0.00017679,2]
[354062291,1740216648753,-366.093694,0.00017679,2]
[354062293,1740216648763,-151.0,0.00017679,2]
[354062295,1740216648773,-151.0,0.00017679,2]
[354062297,1740216648783,-151.0,0.00017679,2]
[354062299,1740216648792,-461.795384,0.00017679,2]
[354062301,1740216648802,-461.795384,0.00017679,2]
[354062303,1740216648811,-601.587076,0.00017679,2]
[354062305,1740216648820,-601.587076,0.00017679,2]
[354062307,1740216648829,-844.677331,0.00017679,2]
[354062309,1740216648838,-844.677331,0.00017679,2]
[354062311,1740216648847,-494.675722,0.00017679,2]
[354062313,1740216648856,-494.675722,0.00017679,2]
[354062315,1740216648866,-151.0,0.00017679,2]
[354062317,1740216648875,-236.682273,0.00017679,2]
[354062319,1740216648884,-236.682273,0.00017679,2]
[354062321,1740216648893,-161.735493,0.00017679,2]
[354062323,1740216648902,-254.27023,0.00017679,2]
[354062325,1740216648912,-161.735493,0.00017679,2]
[354062327,1740216648920,-254.27023,0.00017679,2]
[354062329,1740216648930,-151.0,0.00017679,2]
[354062331,1740216648939,-625.703126,0.00017679,2]
[354062333,1740216648948,-324.480752,0.00017679,2]
[354062335,1740216648957,-625.703126,0.00017679,2]
[354062337,1740216648966,-324.480752,0.00017679,2]
[354062339,1740216648975,-948.041667,0.00017679,2]
[354062341,1740216648984,-948.041667,0.00017679,2]
[354062343,1740216648993,-160.50814073,0.0001769,2]
[354062345,1740216649003,-55135.14234657,0.000177,2]
[354062347,1740216649012,-151.0,0.000177,2]
[354062349,1740216649021,-151.0,0.000177,2]
[354062351,1740216649030,-151.0,0.000177,2]
[354062353,1740216649039,-253.375716,0.000177,2]
[354062355,1740216649048,-253.375716,0.000177,2]
[354062357,1740216649057,-366.093694,0.000177,2]
[354062359,1740216649066,-366.093694,0.000177,2]
[354062361,1740216649076,-151.0,0.000177,2]
[354062363,1740216649085,-151.0,0.000177,2]
[354062365,1740216649094,-461.795384,0.000177,2]
[354062367,1740216649103,-461.795384,0.000177,2]
[354062369,1740216649112,-601.587076,0.000177,2]
[354062371,1740216649121,-601.587076,0.000177,2]
[354062373,1740216649130,-844.677331,0.000177,2]
[354062375,1740216649139,-844.677331,0.000177,2]
[354062377,1740216649148,-494.675722,0.000177,2]
[354062379,1740216649157,-494.675722,0.000177,2]
[354062381,1740216649167,-157.899175,0.000177,2]
[354062383,1740216649176,-236.682273,0.000177,2]
[354062385,1740216649185,-236.682273,0.000177,2]
[354062387,1740216649194,-161.735493,0.000177,2]
[354062389,1740216649203,-254.27023,0.000177,2]
[354062391,1740216649213,-161.735493,0.000177,2]
[354062393,1740216649223,-151.391908,0.000177,2]
[354062395,1740216649233,-254.27023,0.000177,2]
[354062397,1740216649242,-625.703126,0.000177,2]
[354062399,1740216649251,-324.480752,0.000177,2]
[354062401,1740216649260,-625.703126,0.000177,2]
[354062403,1740216649270,-324.480752,0.000177,2]
[354062405,1740216649279,-948.041667,0.000177,2]
[354062407,1740216649289,-948.041667,0.000177,2]
[354062409,1740216649300,-151.0,0.000177,2]
[354062411,1740216649310,-171.565081,0.000177,2]
[354062414,1740216649320,-171.565081,0.000177,2]
[354062416,1740216649330,-710.43500729,0.00017743,2]
[354062418,1740216649339,-160.50814073,0.00017749,2]
[354062420,1740216649349,-6238.11532575,0.00017759,2]
[354062422,1740216649358,-22627.40192453,0.0001776,2]
[354062424,1740216649367,-5903.35790642,0.000178,2]
[354062426,1740216649376,-150.0,0.0001784,4]
[354062428,1740216649385,-710.43500729,0.00017843,2]
[354062430,1740216649395,-150.24,0.00017867,2]
[354062432,1740216649405,-503.0,0.00017867,2]
[354062434,1740216649414,-500.0,0.00017867,2]
[354062436,1740216649423,-2000.0,0.000179,2]
[354062438,1740216649432,-3000.0,0.000179,2]
[354062440,1740216649441,-3000.0,0.000179,2]
[354062442,1740216649450,-470.287999,0.000179,2]
[354062444,1740216649460,-470.287999,0.000179,2]
[354062446,1740216649469,-151.0,0.000179,2]
[354062448,1740216649478,-193.404654,0.000179,2]
[354062450,1740216649488,-193.404654,0.000179,2]
[354062452,1740216649497,-429.519595,0.000179,2]
[354062454,1740216649506,-1727.19061,0.000179,2]
[354062456,1740216649515,-1727.19061,0.000179,2]
[354062458,1740216649524,-151.0,0.000179,2]
[354062460,1740216649533,-429.519595,0.000179,2]
[354062462,1740216649543,-209.84879352,0.000179,2]
[354062464,1740216649552,-710.43500729,0.00017943,2]
[354062466,1740216649561,-150.0,0.00017946,4]
[354062468,1740216649570,-160.50814073,0.00017949,2]
[354062470,1740216649579,-151.0,0.00017956,2]
[354062472,1740216649589,-151.0,0.00017956,2]
[354062474,1740216649602,-151.0,0.00017956,2]
[354062476,1740216649611,-151.0,0.00017956,2]
[354062478,1740216649620,-151.0,0.00017956,2]
[354062480,1740216649629,-151.0,0.00017956,2]
[354062482,1740216649639,-201.080352,0.00017956,2]
[354062484,1740216649649,-151.0,0.00017956,2]
[354062486,1740216649658,-151.0,0.00017956,2]
[354062488,1740216649668,-315.324909,0.00017956,2]
[354062490,1740216649678,-315.324909,0.00017956,2]
[354062492,1740216649687,-315.324909,0.00017956,2]
[354062494,1740216649697,-315.324909,0.00017956,2]
[354062496,1740216649706,-1249.535471,0.00017956,2]
[354062498,1740216649715,-1249.535471,0.00017956,2]
[354062500,1740216649724,-180.0,0.00017956,2]
[354062502,1740216649734,-180.0,0.00017956,2]
[354062504,1740216649743,-151.0,0.00017956,2]
[354062506,1740216649751,-151.0,0.00017956,2]
[354062508,1740216649760,-180.0,0.00017956,2]
[354062510,1740216649770,-180.0,0.00017956,2]
[354062512,1740216649779,-151.0,0.00017956,2]
[354062514,1740216649787,-151.0,0.00017956,2]
[354062516,1740216649798,-151.0,0.00017956,2]
[354062518,1740216649807,-151.0,0.00017956,2]
[354062520,1740216649816,-151.0,0.00017956,2]
[354062522,1740216649826,-151.0,0.00017956,2]
[354062524,1740216649835,-253.375716,0.00017956,2]
[354062526,1740216649845,-253.375716,0.00017956,2]
[354062528,1740216649854,-253.375716,0.00017956,2]
[354062530,1740216649863,-253.375716,0.00017956,2]
[354062532,1740216649872,-366.093694,0.00017956,2]
[354062534,1740216649882,-366.093694,0.00017956,2]
[354062536,1740216649891,-366.093694,0.00017956,2]
[354062538,1740216649900,-366.093694,0.00017956,2]
[354062540,1740216649909,-151.0,0.00017956,2]
[354062542,1740216649918,-151.0,0.00017956,2]
[354062544,1740216649927,-272.490726,0.00017956,2]
[354062546,1740216649936,-461.795384,0.00017956,2]
[354062548,1740216649945,-461.795384,0.00017956,2]
[354062550,1740216649954,-461.795384,0.00017956,2]
[354062552,1740216649963,-461.795384,0.00017956,2]
[354062554,1740216649973,-151.0,0.00017956,2]
[354062556,1740216649981,-151.0,0.00017956,2]
[354062558,1740216649991,-151.0,0.00017956,2]
[354062560,1740216650000,-151.0,0.00017956,2]
[354062562,1740216650009,-601.587076,0.00017959,2]
[354062564,1740216650018,-601.587076,0.00017959,2]
[354062566,1740216650027,-601.587076,0.00017959,2]
[354062568,1740216650036,-601.587076,0.00017959,2]
[354062569,1740216650046,-601.587076,0.00017959,2]
[354062571,1740216650055,-601.587076,0.00017959,2]
[354062573,1740216650064,-844.677331,0.00017959,2]
[354062575,1740216650073,-844.677331,0.00017959,2]
[354062577,1740216650082,-844.677331,0.00017959,2]
[354062579,1740216650091,-844.677331,0.00017959,2]
[354062581,1740216650100,-844.677331,0.00017959,2]
[354062583,1740216650109,-844.677331,0.00017959,2]
[354062585,1740216650118,-494.675722,0.00017959,2]
[354062587,1740216650127,-494.675722,0.00017959,2]
[354062589,1740216650137,-494.675722,0.00017959,2]
[354062591,1740216650146,-494.675722,0.00017959,2]
[354062593,1740216650155,-494.675722,0.00017959,2]
[354062595,1740216650165,-494.675722,0.00017959,2]
[354062597,1740216650174,-236.682273,0.00017959,2]
[354062599,1740216650183,-236.682273,0.00017959,2]
[354062601,1740216650192,-236.682273,0.00017959,2]
[354062603,1740216650200,-236.682273,0.00017959,2]
[354062605,1740216650209,-236.682273,0.00017959,2]
[354062607,1740216650219,-236.682273,0.00017959,2]
[354062609,1740216650228,-161.735493,0.00017959,2]
[354062611,1740216650237,-161.735493,0.00017959,2]
[354062613,1740216650246,-161.735493,0.00017959,2]
[354062615,1740216650255,-254.27023,0.00017959,2]
[354062617,1740216650264,-254.27023,0.00017959,2]
[354062619,1740216650274,-161.735493,0.00017959,2]
[354062621,1740216650283,-254.27023,0.00017959,2]
[354062623,1740216650292,-161.735493,0.00017959,2]
[354062625,1740216650301,-161.735493,0.00017959,2]
[354062626,1740216650310,-254.27023,0.00017959,2]
[354062628,1740216650319,-254.27023,0.00017959,2]
[354062630,1740216650328,-254.27023,0.00017959,2]
[354062632,1740216650337,-625.703126,0.00017959,2]
[354062634,1740216650347,-625.703126,0.00017959,2]
[354062636,1740216650356,-625.703126,0.00017959,2]
[354062638,1740216650365,-324.480752,0.00017959,2]
[354062640,1740216650374,-324.480752,0.00017959,2]
[354062642,1740216650383,-625.703126,0.00017959,2]
[354062644,1740216650392,-625.703126,0.00017959,2]
[354062646,1740216650400,-324.480752,0.00017959,2]
[354062656,1740216650409,-625.703126,0.00017959,2]
[354062658,1740216650489,-151.0,0.00017959,2]
[354062660,1740216650499,-151.0,0.00017959,2]
[354062662,1740216650508,-324.480752,0.00017959,2]
[354062664,1740216650517,-324.480752,0.00017959,2]
[354062666,1740216650526,-324.480752,0.00017959,2]
[354062668,1740216650535,-151.0,0.00017959,2]
[354062670,1740216650544,-151.0,0.00017959,2]
[354062672,1740216650554,-948.041667,0.00017959,2]
[354062674,1740216650564,-948.041667,0.00017959,2]
[354062676,1740216650573,-948.041667,0.00017959,2]
[354062678,1740216650583,-151.0,0.00017959,2]
[354062680,1740216650592,-151.0,0.00017959,2]
[354062682,1740216650605,-948.041667,0.00017959,2]
[354062684,1740216650615,-948.041667,0.00017959,2]
[354062686,1740216650624,-948.041667,0.00017959,2]
[354062688,1740216650633,-151.0,0.00017959,2]
[354062690,1740216650643,-151.0,0.00017959,2]
[354062692,1740216650652,-470.287999,0.00017959,2]
[354062694,1740216650661,-470.287999,0.00017959,2]
[354062696,1740216650672,-470.287999,0.00017959,2]
[354062698,1740216650682,-470.287999,0.00017959,2]
[354062700,1740216650691,-151.0,0.00017959,2]
[354062702,1740216650700,-240.187501,0.00017959,2]
[354062704,1740216650710,-193.404654,0.00017959,2]
[354062706,1740216650719,-193.404654,0.00017959,2]
[354062708,1740216650729,-193.404654,0.00017959,2]
[354062710,1740216650738,-193.404654,0.00017959,2]
[354062712,1740216650747,-429.519595,0.00017959,2]
[354062714,1740216650756,-1727.19061,0.00017959,2]
[354062716,1740216650766,-429.519595,0.00017959,2]
[354062718,1740216650775,-1727.19061,0.00017959,2]
[354062719,1740216650784,-1727.19061,0.00017959,2]
[354062722,1740216650793,-1727.19061,0.00017959,2]
[354062723,1740216650804,-429.519595,0.00017959,2]
[354062725,1740216650813,-429.519595,0.00017959,2]
[354062728,1740216650823,-151.0,0.00017959,2]
[354062729,1740216650833,-151.0,0.00017959,2]
[354062731,1740216650842,-171.565081,0.00017959,2]
[354062733,1740216650852,-171.565081,0.00017959,2]
[354062735,1740216650862,-171.565081,0.00017959,2]
[354062737,1740216650872,-171.565081,0.00017959,2]
[354062739,1740216650881,-189.0,0.00017959,30]
[354062741,1740216650891,-150.0,0.00017959,30]
[354062743,1740216650901,-732.55101817,0.00017959,32]
[354062745,1740216650910,-1750.47713818,0.00017959,2]
[354062747,1740216650919,-501.88513988,0.00017959,2]
[354062749,1740216650928,-43767.99169284,0.00017959,2]
[354062751,1740216650938,-92418.89087219,0.00017959,10]
[354062771,1740216651121,-150.24,0.00016771,2]
[354062773,1740216651130,-150.24,0.00016771,2]
[354062775,1740216651139,-150.24,0.00017045,2]
[354062777,1740216651149,-150.24,0.00017319,2]
[354062779,1740216651158,-150.24,0.00017593,2]
[354062781,1740216651167,-150.24,0.00017867,2]
[354062783,1740216651176,-174410.77708149,0.00017959,10]
[354062785,1740216651186,-9057.44449524,0.00017959,2]
[354062787,1740216651196,-1279.4478554,0.00017959,35]
[354062789,1740216651205,-48195.35239929,0.00017959,7]
[354062792,1740216651221,-771.58837932,0.00017959,7]
[354063161,1740216759515,232.480326,9.041e-05,2]
[354063187,1740217832399,-300.0,0.00013697,2]
[354063189,1740217832409,-500.0,0.00013698,2]
[354063191,1740217832419,-500.0,0.00013698,2]
[354063193,1740217832429,-500.0,0.00013698,2]
[354063195,1740217832439,-500.0,0.00013698,2]
[354063197,1740217832448,-500.0,0.00013698,2]
[354063199,1740217832457,-500.0,0.00013698,2]
[354063201,1740217832467,-500.0,0.00013698,2]
[354063203,1740217832476,-500.0,0.00013698,2]
[354063205,1740217832486,-500.0,0.00013698,2]
[354063207,1740217832495,-500.0,0.00013698,2]
[354063209,1740217832505,-500.0,0.00013698,2]
[354063210,1740217832515,-500.0,0.00013698,2]
[354063211,1740217832524,-500.0,0.00013698,2]
[354063212,1740217832534,-501.21807915,0.00013698,2]
[354063213,1740217832543,-500.0,0.00013698,2]
[354063214,1740217832553,-500.0,0.00013698,2]
[354063215,1740217832563,-503.57287931,0.00013698,2]
[354063216,1740217832572,-500.0,0.00013698,2]
[354063217,1740217832581,-500.0,0.00013698,2]
[354063218,1740217832591,-500.84663735,0.00013698,2]
[354063219,1740217832600,-500.0,0.00013698,2]
[354063220,1740217832610,-500.7275648,0.00013698,2]
[354063221,1740217832620,-581.98,0.00013698,2]
[354063222,1740217832630,-500.0,0.00013698,2]
[354063223,1740217832639,-500.0,0.00013698,2]
[354063224,1740217832649,-343.31084516,0.00013698,2]
[354063226,1740217832658,-500.0,0.00013698,2]
[354063228,1740217832667,-500.0,0.00013698,2]
[354063230,1740217832677,-501.77240154,0.00013698,2]
[354063232,1740217832686,-504.6401333,0.00013698,2]
[354063234,1740217832696,-500.0,0.00013698,2]
[354063236,1740217832705,-500.0,0.00013698,2]
[354063238,1740217832715,-500.0,0.00013698,2]
[354063240,1740217832725,-500.0,0.00013698,2]
[354063242,1740217832734,-500.0,0.00013698,2]
[354063244,1740217832743,-501.05944997,0.00013698,2]
[354063246,1740217832753,-500.0,0.00013698,2]
[354063248,1740217832763,-549.54,0.00013698,2]
[354063250,1740217832772,-500.0,0.00013698,2]
[354063252,1740217832781,-509.0418349,0.00013698,2]
[354063254,1740217832790,-500.0,0.00013698,2]
[354063256,1740217832800,-500.0,0.00013698,2]
[354063258,1740217832810,-536.38930715,0.00013698,2]
[354063261,1740217832820,-500.0,0.00013698,2]
[354063262,1740217832829,-420.02369397,0.00013698,2]
[354063264,1740217832838,-500.0,0.00013698,2]
[354063266,1740217832848,-500.0,0.00013698,2]
[354063267,1740217832857,-500.0,0.00013698,2]
[354063268,1740217832866,-500.0,0.00013698,2]
[354063269,1740217832876,-500.0,0.00013698,2]
[354063270,1740217832885,-500.0,0.00013698,2]